bitfinex-derivatives/quotes_ETHF0:USTF0_20251223
["timestamp","ask_amount","ask_price","bid_price","bid_amount"]
[1766480346084,0.00870371,2961.9,2960.5,1.20502252]
[1766480348781,0.00870371,2961.9,2960.3,3.19498769]
[1766480348988,0.00870371,2961.9,2960.6,1.20502252]
[1766480349480,0.00870371,2961.9,2960.4,3.02597769]
[1766480349689,0.00870371,2961.9,2960.7,1.20502252]
[1766480350877,0.00870371,2961.9,2961.0,1.20502252]
[1766480351080,1.20502252,2962.6,2961.0,1.20502252]
[1766480352186,0.00506338,2962.1,2961.5,0.00506338]
[1766480360398,0.00239557,2962.6,2961.5,0.00506338]
[1766480361395,0.00506338,2962.3,2961.5,0.00506338]
[1766480374506,0.00239557,2962.6,2961.5,0.00506338]
[1766480375513,0.00506338,2962.3,2961.5,0.00506338]
[1766480377415,0.00239557,2962.6,2961.5,0.00506338]
[1766480378513,0.00506338,2962.3,2961.5,0.00506338]
[1766480400547,1.20992278,2962.3,2960.6,3.02597769]
[1766480400740,1.20992278,2962.3,2960.5,10.58583709]
[1766480400944,1.2048594,2962.0,2960.6,40.8]
[1766480401341,1.20992278,2962.3,2960.6,40.8]
[1766480401545,1.20992278,2962.3,2961.2,0.00506338]
[1766480403450,1.2048594,2962.0,2960.6,40.8]
[1766480403946,1.2048594,2962.1,2960.6,40.8]
[1766480404540,1.2048594,2962.1,2961.1,0.00506338]
[1766480408047,1.20506042,2961.8,2961.1,0.00506338]
[1766480408346,0.17396338,2962.3,2960.6,40.8]
[1766480408653,1.20506042,2961.4,2960.2,4.23103811]
[1766480408949,1.20506042,2961.4,2960.3,40.8]
[1766480409637,1.20506042,2961.4,2960.6,0.00506338]
[1766480409950,1.20506042,2961.6,2960.6,0.00506338]
[1766480412048,1.20506042,2961.4,2960.6,0.00506338]
[1766480415655,1.20506042,2961.6,2960.6,0.00506338]
[1766480415852,0.16891,2962.1,2960.6,1.2101238]
[1766480416059,1.20506042,2962.0,2960.8,1.20506042]
[1766480416254,0.00506338,2962.3,2961.0,1.20506042]
[1766480416554,0.00506338,2962.3,2961.2,1.20506042]
[1766480416851,0.00506338,2962.3,2961.6,1.20506042]
[1766480419047,0.00506338,2962.3,2961.4,1.20506042]
[1766480419456,0.00506338,2962.3,2961.5,40.8]
[1766480419655,1.20506042,2962.1,2961.5,40.8]
[1766480419858,1.20506042,2961.9,2960.7,4.23103811]
[1766480420058,1.20506042,2961.9,2960.7,1.20506042]
[1766480420257,1.20506042,2961.9,2960.9,1.20506042]
[1766480420454,1.20506042,2961.9,2960.8,40.8]
[1766480420759,1.20506042,2962.1,2960.9,1.20506042]
[1766480421950,1.20506042,2961.9,2960.8,40.8]
[1766480427356,1.20506042,2961.7,2960.8,40.8]
[1766480428963,0.00506338,2962.3,2960.8,40.8]
[1766480429161,1.20506042,2961.8,2960.8,40.8]
[1766480430861,1.20506042,2961.1,2960.6,0.00506338]
[1766480431161,1.20506042,2961.9,2960.6,0.00506338]
[1766480431162,1.20506042,2961.3,2960.6,0.00343119]
[1766480431349,0.16891,2962.1,2960.6,0.00343119]
[1766480431553,1.20506042,2961.6,2960.6,0.00343119]
[1766480435366,1.20506042,2961.5,2960.6,0.00343119]
[1766480436163,0.16891,2962.1,2960.9,1.20506042]
[1766480436466,1.20506042,2962.2,2960.9,1.20506042]
[1766480437667,0.00506338,2962.3,2960.9,1.20506042]
[1766480437859,0.00506338,2962.3,2961.5,1.20506042]
[1766480438066,0.00506338,2962.3,2961.3,1.20506042]
[1766480438370,1.20506042,2962.2,2961.1,1.20506042]
[1766480438962,1.20506042,2962.2,2960.9,1.20506042]
[1766480439163,1.20506042,2962.0,2960.7,1.37405042]
[1766480439559,1.20506042,2962.0,2960.9,1.20506042]
[1766480440568,0.00506338,2962.3,2961.3,1.20506042]
[1766480443165,1.2101238,2962.3,2961.3,1.20506042]
[1766480445672,0.00506338,2962.3,2961.3,1.20506042]
[1766480446171,0.00506338,2962.3,2961.5,1.20506042]
[1766480446567,0.00506338,2962.3,2961.7,1.20506042]
[1766480446766,0.00239557,2962.6,2961.7,1.20506042]
[1766480446962,0.00239557,2962.6,2961.9,1.20506042]
[1766480447168,0.16883,2963.6,2962.3,1.20506042]
[1766480447370,1.37389042,2963.6,2962.3,1.20506042]
[1766480447771,0.00506338,2963.2,2962.7,0.00506338]
[1766480448177,0.00818708,2963.2,2962.7,0.00765588]
[1766480450973,0.00818708,2963.2,2962.1,1.20506042]
[1766480451171,1.2132475,2963.2,2962.1,1.20506042]
[1766480451784,0.00818708,2963.2,2962.1,1.20506042]
[1766480451979,0.00818708,2963.2,2962.4,0.00343119]
[1766480454977,0.00818708,2963.2,2962.5,1.20506042]
[1766480457881,0.00818708,2963.2,2962.4,0.00343119]
[1766480460582,0.00818708,2963.2,2962.4,1.20849161]
[1766480460782,6.479,2964.8,2962.4,1.20849161]
[1766480460783,0.16875,2965.1,2963.1,1.20506042]
[1766480461080,0.16875,2965.1,2962.8,1.37393042]
[1766480461081,1.20506042,2964.7,2962.8,1.64741551]
[1766480461279,1.20506042,2964.3,2963.1,1.20506042]
[1766480461478,1.20506042,2964.1,2962.9,42.00506042]
[1766480461680,1.20506042,2964.3,2963.1,1.20506042]
[1766480461986,0.00506338,2964.0,2963.4,0.00506338]
[1766480463581,0.0008,2965.5,2963.9,1.20506042]
[1766480463779,0.0008,2965.5,2964.5,1.20506042]
[1766480463982,1.20506042,2965.4,2964.3,1.20506042]
[1766480464473,0.00506338,2965.1,2964.7,1.20506042]
[1766480464678,0.00300564,2965.4,2964.4,1.20506042]
[1766480465387,0.00300564,2965.4,2964.3,40.80263416]
[1766480465687,0.00506338,2965.1,2964.6,1.20506042]
[1766480465985,0.00506338,2965.1,2964.3,40.80263416]
[1766480468479,0.00300564,2965.4,2964.3,40.80263416]
[1766480469385,0.00506338,2965.1,2964.3,40.80263416]
[1766480480610,0.0008,2965.5,2964.3,40.80263416]
[1766480481813,0.00500775,2965.2,2964.3,40.80263416]
[1766480485422,0.00367013,2965.5,2964.3,40.80263416]
[1766480486017,0.00367013,2965.5,2964.6,1.20172649]
[1766480486816,0.00367013,2965.5,2964.9,1.20172649]
[1766480487019,0.16867,2966.3,2964.9,1.20678987]
[1766480487224,1.20172649,2966.8,2964.9,1.20678987]
[1766480488024,1.37314594,2966.8,2964.9,1.20678987]
[1766480488223,0.87633598,2966.7,2964.9,1.20678987]
[1766480488825,0.17141945,2966.8,2965.2,1.20172649]
[1766480489025,1.37314594,2966.8,2965.2,1.20172649]
[1766480489423,0.00276945,2966.8,2965.2,1.20172649]
[1766480489819,0.00276945,2966.8,2965.8,1.20172649]
[1766480491323,0.00276945,2966.8,2966.1,1.20172649]
[1766480491923,0.00276945,2966.8,2965.6,40.8]
[1766480504634,0.56058351,2968.0,2965.6,40.8]
[1766480504825,0.56058351,2968.0,2966.5,0.00506338]
[1766480505439,0.72916351,2968.0,2966.5,0.00506338]
[1766480505938,0.7325354,2968.0,2966.5,0.00929957]
[1766480507939,0.17195189,2968.0,2966.5,0.00929957]
[1766480510437,2.04443844,2968.0,2965.8,0.1687]
[1766480510833,0.1686,2967.7,2965.6,40.8]
[1766480511629,0.00506338,2966.9,2966.4,0.00506338]
[1766480511829,0.00506338,2966.9,2965.6,0.00318733]
[1766480512139,0.17370338,2966.9,2964.5,0.16877]
[1766480512440,0.00506338,2966.9,2964.6,40.8]
[1766480512633,0.16866,2966.6,2964.6,40.8]
[1766480512835,0.16866,2966.6,2965.3,0.00506338]
[1766480513237,0.16866,2966.6,2965.3,0.00873509]
[1766480514351,0.16867,2966.4,2965.3,0.00873509]
[1766480514641,2.04106655,2966.5,2964.6,40.8]
[1766480515550,0.00506338,2966.9,2964.6,40.8]
[1766480515843,0.88165729,2966.9,2965.5,0.00506338]
[1766480516246,0.88165729,2966.9,2964.6,40.80337783]
[1766480516437,0.16868,2966.2,2964.6,40.80337783]
[1766480517249,0.16868,2966.2,2965.1,0.00506338]
[1766480521952,0.16869,2966.1,2965.1,0.00506338]
[1766480522253,0.16869,2966.0,2965.1,0.00506338]
[1766480527445,2.04106655,2966.2,2964.6,0.00337783]
[1766480528259,2.04106655,2965.7,2964.0,40.8]
[1766480528464,0.17380338,2965.1,2963.2,0.43325928]
[1766480528859,0.17380338,2965.1,2963.5,40.8]
[1766480529257,0.17668566,2965.1,2963.5,40.8033935]
[1766480529460,0.17668566,2965.1,2964.0,0.00337556]
[1766480529757,0.00794566,2965.1,2963.5,0.0033935]
[1766480531567,0.16876,2964.8,2963.5,0.0033935]
[1766480536469,0.00794566,2965.1,2963.5,0.0033935]
[1766480537368,1.80454216,2964.9,2963.5,0.0033935]
[1766480537769,0.00794566,2965.1,2963.5,0.0033935]
[1766480538561,0.00794566,2965.1,2963.5,1.80793566]
[1766480538756,0.00794566,2965.1,2963.5,0.0033935]
[1766480538953,0.00794566,2965.1,2963.6,40.8]
[1766480547066,1.81248782,2965.1,2963.5,0.0033935]
[1766480547976,1.98122782,2965.1,2963.5,0.0033935]
[1766480549278,0.16875,2965.0,2963.5,0.0033935]
[1766480549568,1.80454216,2964.7,2963.5,0.0033935]
[1766480550365,1.97331216,2964.7,2963.5,0.0033935]
[1766480551675,1.80454216,2964.3,2962.8,40.8]
[1766480551883,0.16878,2964.4,2962.8,40.8]
[1766480552667,0.16878,2964.4,2962.8,40.80307384]
[1766480556182,1.20308888,2964.2,2963.0,1.20308888]
[1766480558274,0.16878,2964.4,2963.2,1.20308888]
[1766480558780,1.37183888,2965.0,2963.6,1.20308888]
[1766480558978,1.37183888,2965.0,2963.8,1.20308888]
[1766480559175,1.37183888,2965.0,2963.6,1.20308888]
[1766480559576,1.20308888,2964.8,2963.6,1.20308888]
[1766480560676,1.20308888,2964.1,2963.0,1.20308888]
[1766480560875,1.20308888,2964.3,2963.0,1.20308888]
[1766480561388,1.20308888,2964.7,2963.4,1.20308888]
[1766480562081,0.00794566,2965.1,2964.0,1.20308888]
[1766480562679,0.00794566,2965.1,2964.2,1.20308888]
[1766480563983,0.00794566,2965.1,2963.8,40.8]
[1766480567687,0.00794566,2965.1,2963.9,1.80322422]
[1766480567886,0.16869,2966.0,2963.9,1.80322422]
[1766480568889,0.00506338,2965.2,2964.7,0.00506338]
[1766480569389,0.17199749,2966.0,2964.7,0.00506338]
[1766480570184,0.00506338,2965.6,2964.7,0.00506338]
[1766480585894,1.20701845,2965.6,2964.7,0.00506338]
[1766480586996,0.00506338,2965.6,2964.7,0.00506338]
[1766480587190,0.00330749,2966.0,2965.2,1.20195507]
[1766480587492,0.00330749,2966.0,2965.2,0.00328172]
[1766480588401,1.20195507,2965.4,2964.7,0.00506338]
[1766480588596,1.20195507,2965.6,2964.7,0.00506338]
[1766480589599,1.20195507,2965.6,2964.7,0.00834359]
[1766480591998,1.20699861,2965.9,2964.7,0.00834359]
[1766480592691,1.20193523,2965.6,2964.7,0.00834359]
[1766480592894,0.00506338,2965.9,2964.7,1.21027882]
[1766480593098,0.00506338,2965.9,2964.7,0.00834359]
[1766480593300,1.20193523,2965.7,2964.7,0.00834359]
[1766480596098,1.20193523,2965.4,2964.7,0.00834359]
[1766480596287,1.20193523,2965.1,2963.8,40.8]
[1766480597188,1.20193523,2965.1,2964.2,0.00506338]
[1766480597593,0.17376338,2965.9,2964.2,0.00506338]
[1766480597594,1.20193523,2965.0,2964.2,0.00506338]
[1766480597796,1.20193523,2965.5,2964.2,0.00506338]
[1766480597994,1.20193523,2965.1,2964.2,0.00506338]
[1766480599498,1.20193523,2964.5,2963.8,0.00309934]
[1766480599703,1.20193523,2964.5,2963.3,0.16884]
[1766480600204,1.20193523,2964.5,2963.4,40.8]
[1766480600405,1.20193523,2964.8,2963.4,40.8]
[1766480600703,0.00506338,2964.4,2963.8,0.00506338]
[1766480601696,0.00506338,2964.4,2963.4,40.80381593]
[1766480602098,0.00506338,2964.4,2963.4,0.00381593]
[1766480602798,0.00506338,2964.4,2963.4,40.80381593]
[1766480603105,0.00506338,2964.4,2963.4,0.00381593]
[1766480605302,1.20193523,2964.2,2963.4,0.00381593]
[1766480605509,1.20193523,2964.2,2962.7,3.19485769]
[1766480605807,1.20193523,2963.9,2962.8,40.8]
[1766480606201,1.20193523,2964.2,2962.8,40.8]
[1766480606398,0.00506338,2964.4,2962.8,40.8]
[1766480606600,0.00943731,2964.4,2962.8,40.8041531]
[1766480607807,1.20193523,2963.9,2962.8,40.8041531]
[1766480609508,1.20193523,2963.9,2962.8,0.0041531]
[1766480611510,1.20193523,2964.2,2962.8,0.0041531]
[1766480613510,0.00943731,2964.4,2962.8,0.0041531]
[1766480615807,1.20193523,2964.3,2962.8,0.0041531]
[1766480616915,0.00943731,2964.4,2962.8,1.20608833]
[1766480617116,0.00943731,2964.4,2963.1,1.20193523]
[1766480622127,0.00943731,2964.4,2963.0,0.16886]
[1766480622520,0.00943731,2964.4,2963.0,1.37079523]
[1766480623529,1.20193523,2964.2,2962.8,0.0041531]
[1766480625930,1.20193523,2963.9,2962.8,0.0041531]
[1766480630639,1.20193523,2964.1,2962.8,0.0041531]
[1766480632335,1.21137254,2964.4,2962.8,1.20608833]
[1766480632735,1.20193523,2964.1,2962.8,0.0041531]
[1766480633644,1.20193523,2964.2,2962.8,0.0041531]
[1766480634748,0.00943731,2964.4,2962.8,1.20608833]
[1766480635135,1.20193523,2964.2,2962.8,1.20608833]
[1766480636641,1.20193523,2964.2,2962.8,0.0041531]
[1766480638246,0.00943731,2964.4,2962.8,0.0041531]
[1766480639436,1.20193523,2963.8,2962.8,0.0041531]
[1766480639745,1.20193523,2964.1,2962.8,0.0041531]
[1766480642144,0.00943731,2964.4,2962.8,0.0041531]
[1766480642346,1.20193523,2963.7,2962.8,0.0041531]
[1766480642642,1.20193523,2963.7,2962.5,40.8]
[1766480643139,0.17821731,2964.4,2962.5,42.00193523]
[1766480643344,0.00943731,2964.4,2962.8,1.20193523]
[1766480643540,0.00943731,2964.4,2962.8,1.20494669]
[1766480644343,1.20193523,2964.2,2962.8,1.20494669]
[1766480647644,0.00943731,2964.4,2962.8,1.20494669]
[1766480649050,1.20193523,2964.2,2962.8,0.00301146]
[1766480649246,0.00943731,2964.4,2963.0,1.20193523]
[1766480651948,1.21137254,2964.4,2962.8,0.00301146]
[1766480653954,1.21245126,2964.4,2963.1,1.20301395]
[1766480657354,1.21245126,2964.4,2962.8,0.00301146]
[1766480657556,1.21245126,2964.4,2963.1,1.20301395]
[1766480668063,0.00943731,2964.4,2963.3,1.20301395]
[1766480668562,0.00943731,2964.4,2963.7,1.20301395]
[1766480668764,1.20301395,2964.9,2963.7,1.20301395]
[1766480669160,1.20287237,2966.0,2963.7,1.20301395]
[1766480669364,1.20301395,2965.0,2963.7,1.20301395]
[1766480669562,1.20301395,2965.0,2963.1,3.02597769]
[1766480669861,0.00506338,2964.3,2963.8,0.00506338]
[1766480678572,0.00299728,2965.0,2963.8,1.20807733]
[1766480679276,0.00299728,2965.0,2964.4,1.20301395]
[1766480679572,0.16871,2965.7,2964.6,1.20301395]
[1766480680566,0.00506338,2965.4,2964.6,1.20301395]
[1766480681166,0.00506338,2965.4,2964.8,1.20301395]
[1766480681370,0.00367536,2965.7,2964.8,1.20301395]
[1766480682367,0.00506338,2965.5,2964.8,1.20301395]
[1766480682666,0.00506338,2965.5,2964.9,1.20301395]
[1766480682872,0.00506338,2965.5,2964.9,1.20725362]
[1766480683571,0.00506338,2965.5,2964.9,0.00423967]
[1766480684672,0.00506338,2965.5,2964.3,42.00301395]
[1766480684868,0.00506338,2965.5,2964.5,1.20301395]
[1766480685775,0.00506338,2965.5,2964.5,1.20627495]
[1766480686275,0.00506338,2965.5,2964.5,0.003261]
[1766480691089,1.20301395,2965.4,2964.5,0.003261]
[1766480691283,1.20301395,2965.2,2964.5,0.003261]
[1766480691595,1.20301395,2965.4,2964.5,0.003261]
[1766480691787,0.00506338,2965.5,2964.5,0.003261]
[1766480692587,1.20807733,2965.5,2964.5,0.003261]
[1766480693092,0.00506338,2965.5,2964.5,0.003261]
[1766480694594,1.20807733,2965.5,2964.5,0.003261]
[1766480695086,1.20301395,2965.3,2964.5,0.003261]
[1766480699694,1.20301395,2965.1,2964.5,0.003261]
[1766480700687,1.20301395,2965.1,2963.9,42.00301395]
[1766480701791,1.20301395,2965.3,2964.1,1.20301395]
[1766480702491,1.20301395,2964.9,2963.9,0.00244332]
[1766480702689,1.20301395,2964.7,2963.9,0.00244332]
[1766480702889,1.20301395,2964.9,2963.9,0.00244332]
[1766480703089,1.20301395,2964.7,2963.9,0.00244332]
[1766480703293,1.20301395,2964.3,2963.4,40.8]
[1766480703487,1.20301395,2964.3,2963.1,1.20301395]
[1766480703892,1.20301395,2964.3,2963.2,40.8]
[1766480704291,1.20301395,2964.5,2963.3,1.20301395]
[1766480704496,0.00506338,2964.2,2963.6,0.00506338]
[1766480706999,0.0463259,2963.9,2963.6,0.00506338]
[1766480707793,0.00506338,2964.2,2963.6,0.00506338]
[1766480710602,1.20301395,2965.1,2963.7,1.20301395]
[1766480710998,0.16874,2965.2,2963.7,1.20301395]
[1766480711296,1.20301395,2965.2,2963.9,1.20301395]
[1766480711696,0.00506338,2964.8,2963.9,1.20301395]
[1766480715504,0.0463518,2964.4,2963.9,1.20301395]
[1766480715896,0.0463518,2964.4,2963.7,1.20242292]
[1766480716590,0.0463518,2964.1,2963.7,1.20242292]
[1766480716801,0.00506338,2964.8,2963.7,1.20242292]
[1766480721705,0.00506338,2964.8,2964.0,1.20242292]
[1766480723309,0.0265278,2964.4,2964.0,1.20242292]
[1766480723606,0.00506338,2964.8,2964.0,1.20242292]
[1766480725102,1.20242292,2965.6,2964.0,1.20242292]
[1766480726110,0.00506338,2965.1,2964.0,1.20242292]
[1766480726612,1.20242292,2966.1,2964.3,1.20242292]
[1766480727105,1.20242292,2966.1,2964.6,1.20242292]
[1766480727510,0.00337556,2965.4,2964.6,1.20242292]
[1766480729008,0.00337556,2965.4,2964.4,1.20242292]
[1766480730215,0.00337556,2965.4,2964.2,40.8]
[1766480730406,0.00337556,2965.4,2963.9,4.39721061]
[1766480730606,0.00337556,2965.4,2963.9,1.37123292]
[1766480731001,0.00337556,2965.4,2964.0,40.8]
[1766480731614,0.00337556,2965.4,2964.1,1.20242292]
[1766480736416,0.00337556,2965.4,2964.2,40.8]
[1766480737020,0.00337556,2965.4,2964.4,1.20242292]
[1766480739627,0.00367536,2965.7,2964.2,40.8]
[1766480739919,0.00367536,2965.7,2964.4,1.20242292]
[1766480754435,0.16867,2966.3,2965.0,1.20242292]
[1766480754731,0.16864,2966.9,2965.4,0.00506338]
[1766480755422,0.171077,2966.9,2965.4,0.00927608]
[1766480760439,1.20242292,2966.7,2965.4,0.00927608]
[1766480761234,1.20242292,2966.4,2965.4,0.00927608]
[1766480761430,1.20242292,2966.4,2964.8,0.16876]
[1766480762026,1.20242292,2966.4,2964.5,1.20242292]
[1766480762226,0.16866,2966.7,2964.5,1.20242292]
[1766480762432,0.00506338,2965.9,2965.3,0.00506338]
[1766480793163,1.20153118,2965.8,2964.7,3.02597769]
[1766480793366,1.20153118,2965.6,2964.7,3.02597769]
[1766480793665,1.20153118,2965.6,2964.5,4.23120573]
[1766480794260,1.20153118,2965.6,2964.8,0.00506338]
[1766480796671,0.00506338,2965.9,2964.8,0.00506338]
[1766480798575,1.20153118,2965.7,2964.4,0.36348817]
[1766480798879,2.40306236,2964.6,2963.4,0.16658817]
[1766480799078,2.40306236,2964.6,2962.1,0.27461138]
[1766480799079,1.20153118,2964.3,2963.5,0.16658817]
[1766480799278,1.20153118,2964.6,2962.1,0.27461138]
[1766480799279,1.20153118,2964.1,2962.1,0.27461138]
[1766480799473,1.20153118,2963.9,2962.7,1.20153118]
[1766480799673,0.00506338,2963.6,2963.0,0.00506338]
[1766480799873,1.20153118,2963.5,2963.0,0.00506338]
[1766480800284,0.00506338,2963.6,2963.0,0.00506338]
[1766480800475,1.20659456,2963.6,2963.1,0.16658817]
[1766480800875,0.00506338,2963.6,2963.1,0.16658817]
[1766480803781,1.20153118,2963.4,2962.7,0.00246475]
[1766480804678,1.20153118,2963.0,2961.1,6.52397]
[1766480804877,1.20153118,2962.8,2961.7,1.20153118]
[1766480805072,1.20153118,2963.0,2961.7,1.20153118]
[1766480805278,1.20153118,2963.0,2961.9,1.20153118]
[1766480805778,1.20153118,2963.0,2962.2,0.00506338]
[1766480807882,0.00506338,2963.6,2962.2,0.00506338]
[1766480808085,1.20153118,2963.4,2962.2,0.00506338]
[1766480808378,1.20153118,2963.2,2962.2,0.00506338]
[1766480815589,1.20153118,2963.3,2962.2,0.00506338]
[1766480818107,1.20153118,2963.1,2962.2,0.00506338]
[1766480822705,1.20153118,2963.3,2962.2,0.00506338]
[1766480822905,1.20153118,2963.5,2962.2,1.20659456]
[1766480823100,0.00506338,2963.6,2962.4,1.20153118]
[1766480824105,1.20153118,2963.5,2962.4,1.20153118]
[1766480824307,1.20153118,2963.5,2962.2,1.20659456]
[1766480826201,1.20153118,2963.5,2962.4,1.20153118]
[1766480826798,0.00506338,2963.6,2962.4,1.20153118]
[1766480829797,0.00506338,2963.6,2962.6,1.20153118]
[1766480830001,0.00506338,2963.6,2962.7,1.20153118]
[1766480830610,0.00506338,2963.6,2962.5,1.20153118]
[1766480831513,1.20153118,2963.5,2962.3,1.20153118]
[1766480833508,1.20153118,2963.3,2962.2,0.00506338]
[1766480835816,1.20153118,2963.1,2962.2,0.00506338]
[1766480837110,1.20153118,2963.3,2962.2,0.00506338]
[1766480837917,0.00506338,2963.6,2962.2,0.00506338]
[1766480837918,1.20385892,2963.5,2962.2,0.00506338]
[1766480842018,0.00506338,2963.6,2962.2,0.00506338]
[1766480844610,1.20385892,2963.5,2962.2,0.00506338]
[1766480848818,0.00506338,2963.6,2962.2,0.00506338]
[1766480849020,1.2089223,2963.6,2962.2,0.00506338]
[1766480849221,0.00506338,2963.6,2962.2,0.00506338]
[1766480850424,1.2089223,2963.6,2962.2,0.00506338]
[1766480853927,0.00506338,2963.6,2962.2,0.00506338]
[1766480862126,0.00506338,2963.6,2962.4,1.20385892]
[1766480875753,0.00506338,2963.6,2962.2,0.17397338]
[1766480876853,1.2089223,2963.6,2962.2,0.17397338]
[1766480881346,0.00506338,2963.6,2962.2,0.17397338]
[1766480883545,0.00506338,2963.6,2962.5,1.20385892]
[1766480884050,0.00506338,2963.6,2962.2,1.3778323]
[1766480893148,1.2089223,2963.6,2962.2,0.17397338]
[1766480897157,0.00506338,2963.6,2962.2,0.17397338]
[1766480899957,1.20367701,2963.5,2962.3,1.20367701]
[1766480903754,1.20367701,2963.5,2962.2,0.17397338]
[1766480905658,1.20367701,2963.3,2962.2,0.17397338]
[1766480911262,0.00506338,2963.6,2962.2,1.37765039]
[1766480911456,1.20367701,2963.4,2962.2,1.37765039]
[1766480913066,1.20367701,2963.4,2962.2,0.17397338]
[1766480916364,0.00506338,2963.6,2962.2,0.17397338]
[1766480916563,1.20367701,2963.5,2962.2,0.17397338]
[1766480917765,1.20367701,2963.5,2962.2,1.37765039]
[1766480923274,0.00506338,2963.6,2962.6,1.20367701]
[1766480929774,0.00506338,2963.6,2962.2,0.17397338]
[1766480930071,0.00506338,2963.6,2962.6,1.20367701]
[1766480933178,0.00506338,2963.6,2962.8,1.20367701]
[1766480940393,0.00506338,2963.6,2962.2,0.17397338]
[1766480940586,0.00506338,2963.6,2962.4,1.20367701]
[1766480941192,0.00506338,2963.6,2962.6,1.20367701]
[1766480941391,0.00506338,2963.6,2962.5,1.20367701]
[1766480941587,1.20367701,2963.3,2962.2,0.00506338]
[1766480947299,1.20367701,2963.4,2962.2,0.00506338]
[1766480949903,1.20367701,2963.4,2962.3,1.20367701]
[1766480950208,1.20874039,2963.6,2962.3,1.20367701]
[1766480951602,1.20367701,2963.5,2962.3,1.20367701]
[1766480951903,1.20367701,2963.3,2962.2,0.00506338]
[1766480959904,1.20888152,2963.6,2962.2,0.00506338]
[1766480977518,0.00506338,2963.6,2962.2,0.00506338]
[1766480979621,0.00506338,2963.6,2962.2,1.20888152]
[1766480989645,1.20888152,2963.6,2962.2,0.00506338]
[1766480996346,0.00506338,2963.6,2962.2,0.00506338]
[1766480997246,0.00506338,2963.6,2962.2,1.20888152]
[1766480998148,1.20381814,2962.3,2960.4,6.07342601]
[1766480998446,1.20381814,2962.7,2960.9,1.20381814]
[1766480998649,1.20381814,2963.7,2961.4,1.20381814]
[1766480998945,1.20381814,2963.7,2961.0,1.20381814]
[1766480998946,1.20381814,2963.4,2961.7,1.20381814]
[1766480999145,0.00506338,2962.8,2962.3,0.00337556]
[1766481000754,1.37263814,2963.8,2962.3,0.00337556]
[1766481001350,1.20381814,2963.5,2962.3,0.00337556]
[1766481001653,0.00506338,2963.2,2962.3,0.00337556]
[1766481002252,1.20381814,2962.9,2961.7,0.00309014]
[1766481003049,0.00506338,2963.2,2961.7,0.00309014]
[1766481003251,1.20381814,2963.0,2962.2,0.00506338]
[1766481004155,1.20381814,2963.0,2961.7,0.00309014]
[1766481005052,0.00506338,2963.2,2961.7,0.00309014]
[1766481005256,1.20381814,2962.9,2961.7,0.00309014]
[1766481006860,0.00506338,2963.2,2961.7,0.00309014]
[1766481007054,1.20381814,2962.9,2961.7,0.00309014]
[1766481009665,1.20381814,2963.1,2961.7,0.00309014]
[1766481009961,0.00506338,2963.2,2961.8,1.20381814]
[1766481012366,0.00506338,2963.2,2962.1,1.20381814]
[1766481020071,0.00506338,2963.2,2962.4,1.20360283]
[1766481028871,0.00506338,2963.2,2962.6,1.20360283]
[1766481029074,1.20688594,2963.9,2962.6,1.20360283]
[1766481029981,0.00506338,2963.5,2963.0,0.00506338]
[1766481030682,1.20688594,2963.9,2963.0,0.00506338]
[1766481031682,0.00506338,2963.7,2963.0,0.00506338]
[1766481062808,1.20360283,2963.3,2961.7,0.00309014]
[1766481063110,1.20360283,2963.3,2962.0,1.20360283]
[1766481063305,1.20866621,2963.7,2961.8,1.20360283]
[1766481063306,1.20360283,2963.1,2961.8,1.20360283]
[1766481063500,1.20360283,2963.1,2962.0,1.20360283]
[1766481063701,1.20360283,2963.1,2962.3,0.00506338]
[1766481064802,1.20866621,2963.7,2962.3,0.00506338]
[1766481065002,1.20360283,2963.2,2962.3,0.00506338]
[1766481067108,1.20360283,2963.0,2962.3,0.00506338]
[1766481079009,1.20360283,2962.8,2962.3,0.00506338]
[1766481079215,1.20360283,2962.8,2961.7,0.00309014]
[1766481082010,1.2042374,2963.1,2961.7,0.00309014]
[1766481083014,1.2042374,2963.4,2961.7,1.20732754]
[1766481085922,1.2042374,2963.1,2961.7,0.00309014]
[1766481087816,1.2042374,2962.8,2961.7,0.00309014]
[1766481089222,1.2042374,2963.1,2961.7,0.00309014]
[1766481089521,1.2042374,2963.3,2961.7,0.00309014]
[1766481099223,1.2042374,2963.3,2961.8,1.2042374]
[1766481101822,1.2042374,2963.3,2961.7,0.00309014]
[1766481108630,1.2042374,2962.7,2961.7,0.00309014]
[1766481108834,1.2042374,2963.0,2961.7,0.00309014]
[1766481119739,1.2042374,2963.3,2961.7,0.00309014]
[1766481119935,1.2042374,2963.1,2961.7,0.00309014]
[1766481121035,1.2042374,2963.2,2961.7,0.00309014]
[1766481121240,1.2042374,2963.3,2961.7,0.00309014]
[1766481124944,1.20930078,2963.7,2961.9,1.2042374]
[1766481125142,0.00506338,2963.7,2962.2,1.2042374]
[1766481125438,1.2042374,2963.6,2962.2,1.2042374]
[1766481128563,1.2042374,2963.6,2961.9,1.2042374]
[1766481129163,1.2042374,2963.3,2961.9,1.2042374]
[1766481130964,1.2042374,2963.3,2962.0,40.8]
[1766481143984,1.20392237,2963.3,2962.0,42.00392237]
[1766481148077,0.00506338,2963.7,2962.0,42.00392237]
[1766481148278,1.20392237,2963.3,2962.0,42.00392237]
[1766481154380,1.20392237,2963.3,2962.0,1.20392237]
[1766481157796,1.20392237,2963.5,2962.2,1.20392237]
[1766481159600,1.20392237,2963.5,2961.9,40.8]
[1766481159891,1.20392237,2963.5,2962.3,1.20392237]
[1766481162589,1.20898575,2963.7,2962.5,1.20392237]
[1766481162897,0.00506338,2963.7,2962.7,1.20392237]
[1766481171498,0.00506338,2963.7,2962.8,1.20392237]
[1766481180605,1.20898575,2963.7,2962.4,1.20392237]
[1766481180804,1.20392237,2963.3,2962.0,1.20392237]
[1766481181207,1.20392237,2962.9,2961.7,0.00309014]
[1766481181407,1.20392237,2962.9,2961.7,1.20701251]
[1766481181608,1.20392237,2963.1,2961.7,0.00309014]
[1766481181808,1.20392237,2963.2,2961.7,0.00309014]
[1766481182009,1.20392237,2963.2,2961.9,1.20392237]
[1766481182310,1.20392237,2963.0,2961.8,1.20392237]
[1766481183411,1.20898575,2963.7,2961.8,1.20392237]
[1766481183712,1.20392237,2963.1,2961.8,1.20392237]
[1766481187617,1.20898575,2963.7,2961.8,1.20392237]
[1766481187814,1.20392237,2963.1,2961.8,1.20392237]
[1766481189017,1.20392237,2962.9,2961.7,0.00309014]
[1766481189213,1.20392237,2962.9,2961.7,1.20701251]
[1766481189811,1.20392237,2962.7,2961.7,0.00309014]
[1766481191014,1.20392237,2962.8,2961.7,0.00309014]
[1766481198521,1.37780575,2963.7,2961.7,0.00309014]
[1766481198821,1.20392237,2962.9,2961.7,1.20701251]
[1766481200419,1.20392237,2963.1,2961.9,1.20392237]
[1766481200619,0.17388338,2963.7,2962.1,1.20392237]
[1766481200827,1.20392237,2963.4,2962.3,1.20392237]
[1766481203527,1.20392237,2963.4,2962.1,1.20392237]
[1766481204629,1.20392237,2963.4,2961.7,0.00309014]